bitfinex/quotes_ETHUSD_20250821
["timestamp","ask_amount","ask_price","bid_price","bid_amount"]
[1755803417649,17.02830075,4279.3,4279.2,0.001]
[1755803418140,16.89696232,4279.3,4279.2,0.001]
[1755803418345,18.84785165,4279.3,4279.2,0.001]
[1755803420846,9.9475098,4279.3,4279.2,0.001]
[1755803421032,8.92288933,4279.3,4279.2,0.001]
[1755803421209,3.972,4279.3,4279.2,0.3174]
[1755803421413,1.15793825,4279.7,4279.2,0.3174]
[1755803421414,3.0,4279.7,4279.2,0.3174]
[1755803421631,3.971,4279.8,4279.2,0.7864]
[1755803421943,3.971,4279.8,4279.3,0.469]
[1755803422151,6.971,4279.8,4279.7,0.3164]
[1755803422449,3.0,4279.8,4279.7,0.7854]
[1755803422746,0.0181406,4279.9,4279.7,0.3164]
[1755803422987,3.0181406,4279.9,4279.7,0.3164]
[1755803423107,3.974,4280.0,4279.8,0.469]
[1755803423312,0.002,4280.0,4279.9,0.7854]
[1755803425153,0.002,4280.0,4279.9,0.3164]
[1755803425657,0.002,4280.0,4279.9,0.7854]
[1755803428050,0.002,4280.0,4279.4,0.469]
[1755803428260,0.0201406,4280.0,4279.4,0.469]
[1755803429245,0.0201406,4280.0,4279.3,1.798]
[1755803429623,3.0,4279.9,4279.3,1.798]
[1755803429922,0.0181406,4279.8,4279.3,1.798]
[1755803430123,0.4529406,4279.8,4279.3,1.798]
[1755803430320,0.4529406,4279.8,4279.2,0.001]
[1755803430321,0.302,4279.4,4279.2,0.001]
[1755803430557,0.0181406,4279.3,4279.2,0.001]
[1755803430873,0.7549406,4279.3,4279.2,0.001]
[1755803431181,7.7259406,4279.3,4279.2,0.001]
[1755803431377,7.7078,4279.3,4279.2,0.001]
[1755803431564,9.25913419,4279.3,4279.2,0.001]
[1755803432759,9.91913419,4279.3,4279.2,0.001]
[1755803433177,9.91913419,4279.3,4279.1,0.001]
[1755803433178,33.66,4279.2,4279.1,0.001]
[1755803433471,35.25028674,4279.2,4279.1,0.001]
[1755803434034,5.25028674,4279.2,4279.1,0.001]
[1755803434275,7.61242499,4279.2,4279.1,0.001]
[1755803435771,37.61242499,4279.2,4279.1,0.001]
[1755803436483,37.61242499,4279.2,4278.7,0.001]
[1755803436646,37.61242499,4279.2,4278.5,0.005]
[1755803436647,20.56329253,4278.6,4278.5,0.005]
[1755803436846,26.63329253,4278.6,4278.5,0.005]
[1755803437042,29.43023216,4278.6,4278.5,0.005]
[1755803437447,30.15192396,4278.6,4278.5,0.005]
[1755803438153,9.27863143,4278.6,4278.5,0.005]
[1755803438379,10.1658,4278.6,4278.5,0.005]
[1755803438568,10.88721412,4278.6,4278.5,0.005]
[1755803440269,10.66888446,4278.6,4278.5,0.005]
[1755803440580,10.88710594,4278.6,4278.5,0.005]
[1755803441151,10.1658,4278.6,4278.5,0.005]
[1755803441345,33.66,4278.5,4277.8,0.02]
[1755803441650,20.84969253,4277.9,4277.8,0.02]
[1755803441850,24.82069253,4277.9,4277.8,0.02]
[1755803442080,25.25879253,4277.9,4277.8,0.02]
[1755803442785,3.66,4277.8,4277.2,0.001]
[1755803442972,20.84969253,4277.3,4277.2,0.001]
[1755803443151,24.82069253,4277.3,4277.2,0.001]
[1755803443355,25.37651088,4277.3,4277.2,0.001]
[1755803443888,55.37651088,4277.3,4277.2,0.001]
[1755803444085,55.37651088,4277.3,4276.8,0.021]
[1755803444086,3.66,4277.2,4276.8,0.021]
[1755803444285,3.9464,4277.0,4276.8,0.021]
[1755803444483,35.7444,4277.0,4276.8,0.021]
[1755803444785,38.0691,4276.9,4276.8,0.021]
[1755803444970,38.3555,4276.9,4276.8,0.021]
[1755803445147,40.71763963,4276.9,4276.8,0.021]
[1755803445574,36.02213963,4276.9,4276.8,0.021]
[1755803445773,9.99313963,4276.9,4276.8,0.3096]
[1755803446001,3.66,4276.9,4276.8,0.3096]
[1755803446276,7.631,4276.9,4276.8,0.3096]
[1755803446496,7.9174,4276.9,4276.8,0.021]
[1755803446807,3.66,4276.8,4276.7,0.001]
[1755803447008,21.28779253,4276.8,4276.7,0.001]
[1755803447173,23.64993216,4276.8,4276.7,0.001]
[1755803451591,27.18383216,4276.8,4276.7,0.001]
[1755803452520,26.89843216,4276.8,4276.7,0.001]
[1755803453306,27.18483216,4276.8,4276.7,0.001]
[1755803453729,27.62293216,4276.8,4276.7,0.001]
[1755803454926,0.66,4276.5,4276.3,0.001]
[1755803455101,7.9365406,4276.4,4276.3,0.001]
[1755803455301,8.3565,4276.4,4276.3,0.001]
[1755803457928,33.66,4276.3,4275.8,0.02]
[1755803458127,17.84969253,4275.9,4275.8,0.02]
[1755803458325,54.82269253,4275.9,4275.8,0.02]
[1755803458514,55.26079253,4275.9,4275.8,0.02]
[1755803458716,54.82269253,4275.9,4275.8,0.02]
[1755803459129,50.84969253,4275.9,4275.8,0.02]
[1755803459336,52.40102672,4275.9,4275.8,0.02]
[1755803459632,56.37402672,4275.9,4275.8,0.02]
[1755803460231,38.52433419,4275.9,4275.8,0.3086]
[1755803460435,5.21133419,4275.9,4275.8,0.3086]
[1755803460640,7.633,4275.9,4275.8,0.3086]
[1755803461048,7.633,4275.9,4275.8,0.02]
[1755803461245,8.13512568,4275.9,4275.8,0.02]
[1755803461544,8.13512568,4275.9,4275.8,0.3086]
[1755803461751,3.0,4275.9,4275.8,0.7817]
[1755803462042,1.799,4276.2,4275.8,0.7817]
[1755803462243,3.973,4276.1,4275.8,0.3086]
[1755803462447,3.0,4276.0,4275.9,0.4731]
[1755803462646,3.0181406,4276.0,4275.9,0.2886]
[1755803462809,0.0181406,4276.0,4275.9,0.2886]
[1755803463011,3.973,4276.1,4275.9,0.2886]
[1755803463345,1.799,4276.2,4276.0,0.4731]
[1755803463546,6.973,4276.1,4276.0,0.4731]
[1755803463846,1.799,4276.8,4276.0,0.7617]
[1755803464047,1.799,4276.8,4276.1,0.4731]
[1755803464214,1.799,4276.8,4276.7,0.2886]
[1755803464418,1.799,4277.4,4276.7,0.7617]
[1755803464638,3.973,4277.3,4276.7,0.2886]
[1755803464815,3.0,4277.2,4276.8,0.4731]
[1755803465018,3.0,4277.0,4276.8,0.4731]
[1755803465252,3.0,4277.0,4276.9,0.7617]
[1755803466464,3.0181406,4277.0,4276.9,0.7617]
[1755803466635,3.0,4277.0,4276.9,0.7617]
[1755803467323,1.801,4277.4,4276.9,0.7617]
[1755803467523,3.975,4277.4,4277.0,0.4731]
[1755803467761,3.975,4277.4,4277.3,0.2886]
[1755803467946,6.975,4277.4,4277.3,0.2886]
[1755803468260,6.975,4277.4,4277.3,0.7177]
[1755803468458,6.975,4277.4,4277.3,0.2886]
[1755803470345,7.6725,4277.4,4277.3,0.2886]
[1755803470843,4.9792,4277.4,4276.6,0.001]
[1755803471052,4.87363976,4277.3,4276.6,0.001]
[1755803471239,3.0,4277.1,4276.6,0.001]
[1755803471444,3.0,4276.9,4276.6,0.001]
[1755803471667,3.0,4276.7,4276.6,0.001]
[1755803471874,3.0181406,4276.7,4276.6,0.001]
[1755803472067,3.0181406,4276.7,4276.6,0.3012]
[1755803472270,3.52199882,4276.7,4276.6,0.001]
[1755803472469,4.67028397,4276.7,4276.6,0.001]
[1755803472634,4.65214337,4276.7,4276.6,0.001]
[1755803473264,4.34544337,4276.7,4276.6,0.001]
[1755803473474,4.36358397,4276.7,4276.6,0.001]
[1755803474452,4.8889941,4276.7,4276.6,0.001]
[1755803474767,4.8708535,4276.7,4276.6,0.001]
[1755803475134,4.5641535,4276.7,4276.6,0.001]
[1755803475340,4.5641535,4276.7,4276.6,0.3012]
[1755803476279,4.5641325,4276.7,4276.6,0.3012]
[1755803476577,4.564152,4276.7,4276.6,0.3012]
[1755803476777,4.34544337,4276.7,4276.6,0.3012]
[1755803476985,4.56415158,4276.7,4276.6,0.3012]
[1755803477283,5.36249218,4276.7,4276.6,0.001]
[1755803477481,6.00435158,4276.7,4276.6,0.001]
[1755803477647,5.53085158,4276.7,4276.6,0.001]
[1755803477965,9.19615158,4276.7,4276.6,0.001]
[1755803478653,9.50285158,4276.7,4276.6,0.001]
[1755803478855,9.50289771,4276.7,4276.6,0.001]
[1755803480090,9.50289771,4276.7,4276.6,0.3012]
[1755803480091,4.56419771,4276.7,4276.6,0.3012]
[1755803480272,7.69461938,4276.7,4276.6,0.3012]
[1755803480473,7.47590435,4276.7,4276.6,0.3012]
[1755803482067,8.00132763,4276.7,4276.6,0.001]
[1755803482501,8.00132376,4276.7,4276.6,0.001]
[1755803483897,8.00332376,4276.7,4276.6,0.001]
[1755803484074,10.36546339,4276.7,4276.6,0.001]
[1755803484871,10.05876339,4276.7,4276.6,0.001]
[1755803485087,10.83896339,4276.7,4276.6,0.001]
[1755803485502,10.14674398,4276.7,4276.6,0.001]
[1755803485670,10.36550073,4276.7,4276.6,0.001]
[1755803486999,10.05880073,4276.7,4276.6,0.001]
[1755803487876,11.02550073,4276.7,4276.6,0.001]
[1755803488082,11.49900073,4276.7,4276.6,0.001]
[1755803488777,11.49915489,4276.7,4276.6,0.001]
[1755803491786,11.63060826,4276.7,4276.6,0.001]
[1755803492197,11.15710826,4276.7,4276.6,0.001]
[1755803493218,10.19040826,4276.7,4276.6,0.3012]
[1755803493509,10.18940826,4276.7,4276.6,0.3012]
[1755803493683,7.82726863,4276.7,4276.6,0.3012]
[1755803494297,15.65455347,4276.7,4276.6,0.3012]
[1755803494497,15.5231001,4276.7,4276.6,0.3012]
[1755803494903,15.52328656,4276.7,4276.6,0.3012]
[1755803497094,7.69600172,4276.7,4276.6,0.3012]
[1755803497298,6.973,4276.7,4276.6,0.7303]
[1755803497495,3.002,4276.7,4276.6,0.7303]
[1755803497699,6.973,4276.7,4276.6,0.7303]
[1755803498833,6.973,4276.7,4276.6,0.3012]
[1755803499013,7.19224864,4276.7,4276.6,0.3012]
[1755803499210,8.4169317,4276.7,4276.6,0.001]
[1755803499529,8.7055317,4276.7,4276.6,0.001]
[1755803500112,8.83714837,4276.7,4276.6,0.001]
[1755803500801,8.54854837,4276.7,4276.6,0.001]
[1755803501000,8.54863634,4276.7,4276.6,0.001]
[1755803501211,8.54863634,4276.7,4276.6,0.3014]
[1755803501435,7.69770684,4276.7,4276.6,0.7387]
[1755803501641,7.69670684,4276.7,4276.6,0.7387]
[1755803503033,7.69670684,4276.7,4276.6,0.001]
[1755803504026,7.66566071,4276.7,4276.6,0.001]
[1755803504252,8.67684069,4276.7,4276.6,0.001]
[1755803504531,10.8521656,4276.7,4276.6,0.001]
[1755803506325,27.77793131,4276.7,4276.6,0.001]
[1755803507152,59.03607529,4276.7,4276.6,0.001]
[1755803507350,3.66,4276.6,4276.3,0.001]
[1755803507643,3.9486,4276.4,4276.3,0.001]
[1755803507806,38.96630463,4276.4,4276.3,0.001]
[1755803508007,3.66,4276.2,4275.8,0.021]
[1755803508236,20.21436571,4275.9,4275.8,0.021]
[1755803508564,25.04093071,4275.9,4275.8,0.021]
[1755803508859,25.50563071,4275.9,4275.8,0.021]
[1755803509060,28.70971309,4275.9,4275.8,0.021]
[1755803509548,59.36971309,4275.9,4275.8,0.021]
[1755803510060,35.99878971,4275.8,4274.9,0.001]
[1755803510260,0.9486,4275.0,4274.9,0.001]
[1755803510443,11.20504095,4275.0,4274.9,0.001]
[1755803510612,11.65160035,4275.0,4274.9,0.001]
[1755803511719,11.7829431,4275.0,4274.9,0.001]
[1755803512976,41.7829431,4275.0,4274.9,0.001]
[1755803513245,41.432089,4275.0,4274.9,0.001]
[1755803513546,41.78210564,4275.0,4274.9,0.001]
[1755803513742,41.78193865,4275.0,4274.9,0.001]
[1755803514257,41.65074503,4275.0,4274.9,0.001]
[1755803514443,41.78187916,4275.0,4274.9,0.001]
[1755803515231,41.78187916,4275.0,4273.9,0.001]
[1755803515232,3.66,4274.8,4273.9,0.001]
[1755803515430,3.66,4274.2,4273.9,0.001]
[1755803515658,3.66,4274.0,4273.9,0.001]
[1755803515857,7.63,4274.0,4273.9,0.3014]
[1755803516418,3.0,4274.0,4273.9,0.7387]
[1755803516613,6.97,4274.0,4273.9,0.7387]
[1755803519754,7.847,4274.0,4273.9,0.3014]
[1755803519964,7.96197462,4274.0,4273.9,0.3014]
[1755803520261,7.96197462,4274.0,4273.9,0.7387]
[1755803520262,7.847,4274.0,4273.9,0.7387]
[1755803520551,3.0,4274.0,4273.9,0.7387]
[1755803522543,3.0181406,4274.0,4273.9,0.7387]
[1755803522844,3.0181406,4274.0,4273.9,0.3014]
[1755803523333,3.0181406,4274.0,4273.9,0.001]
[1755803523533,3.0181406,4274.0,4273.9,0.3014]
[1755803524250,5.13025466,4274.0,4273.9,0.001]
[1755803524449,5.11211406,4274.0,4273.9,0.001]
[1755803524763,6.91211406,4274.0,4273.9,0.001]
[1755803525461,7.13021765,4274.0,4273.9,0.001]
[1755803525667,7.63267574,4274.0,4273.9,0.001]
[1755803526449,7.41457215,4274.0,4273.9,0.001]
[1755803527061,7.63264223,4274.0,4273.9,0.001]
[1755803527263,7.41457215,4274.0,4273.9,0.001]
[1755803527483,7.63262873,4274.0,4273.9,0.001]
[1755803528252,3.66,4273.9,4273.0,0.001]
[1755803528592,0.9553,4273.1,4273.0,0.001]
[1755803528794,9.7434406,4273.1,4273.0,0.001]
[1755803529095,9.7434406,4273.1,4273.0,0.3048]
[1755803529096,5.46,4273.1,4273.0,0.3048]
[1755803529252,9.7253,4273.1,4273.0,0.001]
[1755803529451,12.52753963,4273.1,4273.0,0.001]
[1755803529900,12.08743963,4273.1,4273.0,0.001]
[1755803530252,4.8,4273.1,4273.0,0.3048]
[1755803530501,8.77,4273.1,4273.0,0.7324]
[1755803531070,8.77,4273.1,4273.0,0.3048]
[1755803531274,9.7253,4273.1,4273.0,0.001]
[1755803531600,12.08743963,4273.1,4273.0,0.001]
[1755803533160,11.79213963,4273.1,4273.0,0.001]
[1755803533388,8.77,4273.1,4273.0,0.3048]
[1755803536108,9.7253,4273.1,4273.0,0.001]
[1755803536511,9.43,4273.1,4273.0,0.001]
[1755803537306,9.9339271,4273.1,4273.0,0.001]
[1755803537662,10.2292271,4273.1,4273.0,0.001]
[1755803537865,11.25214981,4273.1,4273.0,0.001]
[1755803538294,19.09386672,4273.1,4273.0,0.001]
[1755803538472,18.79856672,4273.1,4273.0,0.3048]
[1755803539077,9.2739271,4273.1,4273.0,0.3048]
[1755803539287,9.2739271,4273.1,4273.0,0.7324]
[1755803539529,5.3039271,4273.1,4273.0,0.7324]
[1755803539791,8.77,4273.1,4273.0,0.7324]
[1755803541002,16.61171691,4273.1,4273.0,0.3048]
[1755803541910,18.02311397,4273.1,4273.0,0.001]
[1755803542116,18.23215862,4273.1,4273.0,0.3048]
[1755803542322,17.72781397,4273.1,4273.0,0.3048]
[1755803542477,17.72781397,4273.1,4273.0,0.001]
[1755803542680,18.5275098,4273.1,4273.0,0.001]
[1755803543116,14.2622098,4273.1,4273.0,0.3048]
[1755803543402,9.27439583,4273.1,4273.0,0.3048]
[1755803543703,8.77,4273.1,4273.0,0.3048]
[1755803543911,9.0653,4273.1,4273.0,0.001]
[1755803544118,9.56976884,4273.1,4273.0,0.001]
[1755803544693,9.27446884,4273.1,4273.0,0.001]
[1755803544894,5.30446884,4273.1,4273.0,0.7324]
[1755803545175,4.8,4273.1,4273.0,0.3048]
[1755803545418,9.27460169,4273.1,4273.0,0.7324]
[1755803545620,10.49736186,4273.1,4273.0,0.001]
[1755803545910,6.23206186,4273.1,4273.0,0.001]
[1755803546078,10.20206186,4273.1,4273.0,0.001]
[1755803548415,10.71647245,4273.1,4273.0,0.001]
[1755803549499,10.49736186,4273.1,4273.0,0.001]
[1755803549695,10.71654079,4273.1,4273.0,0.001]
[1755803550789,11.15664079,4273.1,4273.0,0.001]
[1755803551415,11.15665902,4273.1,4273.0,0.001]
[1755803552215,11.81665902,4273.1,4273.0,0.001]
[1755803552399,11.94830651,4273.1,4273.0,0.001]
[1755803552911,12.57947433,4273.1,4273.0,0.001]
[1755803553493,11.94830651,4273.1,4273.0,0.001]
[1755803553915,7.53820651,4273.1,4273.0,0.001]
[1755803554086,7.24290651,4273.1,4273.0,0.001]
[1755803554280,7.2152292,4273.1,4273.0,0.001]
[1755803554588,7.2152292,4273.1,4273.0,0.3048]
[1755803554589,10.55190651,4273.1,4273.0,0.3048]
[1755803555417,10.55190651,4273.1,4273.0,0.001]
[1755803555619,6.58290651,4273.1,4273.0,0.001]
[1755803555791,10.55190651,4273.1,4273.0,0.001]
[1755803556298,10.84720651,4273.1,4273.0,0.001]
[1755803556814,6.87820651,4273.1,4273.0,0.001]
[1755803557015,10.84720651,4273.1,4273.0,0.001]
[1755803557203,11.28730651,4273.1,4273.0,0.001]
[1755803557989,11.96140651,4273.1,4273.0,0.001]
[1755803558328,12.80296361,4273.1,4273.0,0.001]
[1755803558531,11.96140651,4273.1,4273.0,0.001]
[1755803558728,13.22546074,4273.1,4273.0,0.001]
[1755803558902,12.87461609,4273.1,4273.0,0.001]
[1755803559098,13.22621196,4273.1,4273.0,0.001]
[1755803559322,11.96215773,4273.1,4273.0,0.001]
[1755803559600,7.99309617,4273.1,4273.0,0.001]
[1755803559803,7.53889617,4273.1,4273.0,0.001]
[1755803560008,11.50789617,4273.1,4273.0,0.001]
[1755803560226,11.96209617,4273.1,4273.0,0.001]
[1755803561634,43.2261504,4273.1,4273.0,0.001]
[1755803562135,3.66,4273.0,4272.8,0.02]
[1755803562327,12.43337046,4272.9,4272.8,0.02]
[1755803562523,41.60537563,4272.9,4272.8,0.02]
[1755803562731,7.84171691,4272.6,4272.5,0.001]
[1755803562915,15.9719966,4272.6,4272.5,0.001]
[1755803563119,16.4261966,4272.6,4272.5,0.001]
[1755803563319,18.49749157,4272.6,4272.5,0.001]
[1755803563856,14.61304067,4272.6,4272.5,0.3086]
[1755803564007,7.82637969,4272.6,4272.5,0.7609]
[1755803564205,7.82637969,4272.6,4272.3,0.001]
[1755803564206,0.66,4272.4,4272.3,0.001]
[1755803564458,16.6319966,4272.4,4272.3,0.001]
[1755803564739,17.71816411,4272.4,4272.3,0.001]
[1755803564954,17.26396411,4272.4,4272.3,0.001]
[1755803565233,19.07421785,4272.4,4272.3,0.001]
[1755803565631,19.52841785,4272.4,4272.3,0.001]
[1755803567053,18.89645034,4272.4,4272.3,0.001]
[1755803567413,19.52792229,4272.4,4272.3,0.001]
[1755803567731,48.89645034,4272.4,4272.3,0.001]
[1755803568119,0.66,4272.2,4271.8,0.021]
[1755803568322,11.80561691,4271.9,4271.8,0.021]
[1755803568629,46.28046229,4271.9,4271.8,0.021]
[1755803568831,47.08540597,4271.9,4271.8,0.021]
[1755803569033,47.08540837,4271.9,4271.8,0.021]
[1755803569536,47.7163876,4271.9,4271.8,0.021]
[1755803569741,49.79923463,4271.9,4271.8,0.021]
[1755803570710,49.34503463,4271.9,4271.8,0.021]
[1755803571545,49.1682554,4271.9,4271.8,0.021]
[1755803573844,49.1682554,4271.9,4271.8,0.3286]
[1755803573845,48.4101554,4271.9,4271.8,0.3286]
[1755803574218,48.4101554,4271.9,4271.8,0.021]
[1755803574638,48.7140554,4271.9,4271.8,0.021]
[1755803575618,49.1682554,4271.9,4271.8,0.021]
[1755803576725,33.66,4271.8,4271.4,0.001]
[1755803577044,11.80561691,4271.5,4271.4,0.001]
[1755803577271,16.63120837,4271.5,4271.4,0.001]
[1755803577427,16.28046229,4271.5,4271.4,0.001]
[1755803577623,17.08478152,4271.5,4271.4,0.001]
[1755803577827,9.24306461,4271.5,4271.4,0.001]
[1755803578022,18.1648609,4271.5,4271.4,0.001]
[1755803580658,13.74161214,4271.5,4271.4,0.001]
[1755803580882,17.40671214,4271.5,4271.4,0.001]
[1755803581434,17.71061214,4271.5,4271.4,0.001]
[1755803581857,17.40671214,4271.5,4271.4,0.001]
[1755803583135,13.43771214,4271.5,4271.4,0.3086]
[1755803583340,17.27543701,4271.5,4271.4,0.7609]
[1755803584638,6.969,4271.5,4271.4,0.7609]
[1755803586550,7.47355961,4271.5,4271.4,0.7609]
[1755803590061,8.35272603,4271.5,4271.4,0.3086]
[1755803590771,7.69272603,4271.5,4271.4,0.7714]
[1755803594461,3.72372603,4271.5,4271.4,0.7714]
[1755803594664,7.69272603,4271.5,4271.4,0.7714]
[1755803595259,7.693044,4271.5,4271.4,0.7714]
[1755803595570,7.69308825,4271.5,4271.4,0.7714]
[1755803595771,3.72408825,4271.5,4271.4,0.7714]
[1755803595974,7.47355961,4271.5,4271.4,0.7714]
[1755803599246,6.969,4271.5,4271.4,0.7714]
[1755803599461,3.0,4271.5,4271.4,0.7714]
[1755803599678,6.968,4271.5,4271.4,0.7714]
[1755803599879,1.801,4272.1,4271.4,0.7714]
[1755803599880,3.968,4271.6,4271.4,0.7714]
[1755803600043,3.968,4271.7,4271.5,0.4628]
[1755803600248,3.0,4271.6,4271.5,0.4628]
[1755803600789,0.002,4271.8,4271.6,0.3083]
[1755803601359,0.002,4271.8,4271.7,0.4628]
[1755803601564,0.002,4271.8,4271.7,0.7711]
[1755803602486,3.002,4271.8,4271.7,0.7711]
[1755803603159,3.002,4271.8,4271.4,0.001]
[1755803603160,11.55885751,4271.8,4271.4,0.001]
[1755803603389,3.0,4271.6,4271.4,0.001]
[1755803603579,8.85661691,4271.8,4271.4,0.001]
[1755803603580,6.9861406,4271.5,4271.4,0.001]
[1755803603767,6.968,4271.5,4271.4,0.001]
[1755803603967,6.968,4271.5,4271.4,0.3093]
[1755803604157,6.968,4271.5,4271.4,0.001]
[1755803604557,6.968,4271.5,4271.4,0.3093]
[1755803605357,6.968,4271.5,4271.4,0.001]
[1755803605552,6.968,4271.5,4271.4,0.3093]
[1755803605867,6.968,4271.5,4271.4,0.7721]
[1755803607275,3.0,4271.5,4271.4,0.7721]
[1755803607784,0.002,4271.8,4271.4,0.7721]
[1755803607976,3.002,4271.8,4271.5,0.4628]
[1755803608176,3.002,4271.8,4271.7,0.3083]
[1755803608763,3.2454406,4271.8,4271.4,0.001]
[1755803608959,3.0,4271.6,4271.4,0.001]
[1755803609160,3.9851406,4271.5,4271.4,0.001]
[1755803609556,4.3010406,4271.5,4271.4,0.001]
[1755803609881,6.9851406,4271.5,4271.4,0.001]
[1755803610082,6.967,4271.5,4271.4,0.001]
[1755803611194,6.967,4271.5,4271.4,0.3093]
[1755803611376,6.967,4271.5,4271.4,0.7721]
[1755803611779,6.967,4271.5,4271.4,0.3093]
[1755803612377,6.967,4271.5,4271.4,0.001]
[1755803613563,7.2829,4271.5,4271.4,0.001]
[1755803613767,15.91964318,4271.5,4271.4,0.001]
[1755803615266,15.46924318,4271.5,4271.4,0.001]
[1755803615465,3.34462627,4271.5,4271.4,0.3093]
[1755803615672,7.31062627,4271.5,4271.4,0.3093]
[1755803616268,8.07692627,4271.5,4271.4,0.001]
[1755803616998,7.31062627,4271.5,4271.4,0.001]
[1755803617173,7.62652627,4271.5,4271.4,0.001]
[1755803617997,8.06462627,4271.5,4271.4,0.001]
[1755803619471,8.57008562,4271.5,4271.4,0.001]
[1755803619875,3.85008562,4271.5,4271.4,0.2917]
[1755803620174,6.966,4271.5,4271.4,0.7633]
[1755803620585,3.0,4271.5,4271.4,0.7633]
[1755803620796,6.966,4271.5,4271.4,0.7633]
[1755803621096,3.0,4271.5,4271.4,0.7633]
[1755803621301,6.966,4271.5,4271.4,0.7633]
[1755803622372,6.966,4271.5,4271.4,0.2917]
[1755803622572,6.966,4271.5,4271.4,0.001]
[1755803622871,8.50864428,4271.5,4271.4,0.001]
[1755803623093,8.94674428,4271.5,4271.4,0.001]
[1755803623401,9.45241333,4271.5,4271.4,0.001]
[1755803623902,9.01431333,4271.5,4271.4,0.001]
[1755803624110,8.50864428,4271.5,4271.4,0.001]
[1755803624277,9.4524628,4271.5,4271.4,0.001]
[1755803624677,8.94674428,4271.5,4271.4,0.001]
[1755803624877,4.23924428,4271.5,4271.4,0.001]
[1755803625288,9.03253862,4271.5,4271.4,0.001]
[1755803625485,9.01439802,4271.5,4271.4,0.001]
[1755803625777,9.45249802,4271.5,4271.4,0.001]
[1755803626701,9.80372566,4271.5,4271.4,0.001]
[1755803629180,10.46372566,4271.5,4271.4,0.001]
[1755803631712,10.02562566,4271.5,4271.4,0.001]
[1755803632011,9.06122566,4271.5,4271.4,0.2917]
[1755803632214,9.06122566,4271.5,4271.4,0.001]
[1755803632215,9.36462566,4271.5,4271.4,0.001]
[1755803632506,10.46263383,4271.5,4271.4,0.001]
[1755803632716,10.46263383,4271.5,4270.9,0.001]
[1755803632717,3.66,4271.4,4270.9,0.001]
[1755803633025,12.43723833,4271.0,4270.9,0.001]
[1755803633324,18.42805491,4271.0,4270.9,0.001]
[1755803633678,18.86615491,4271.0,4270.9,0.001]
[1755803634380,19.49775153,4271.0,4270.9,0.001]
[1755803634589,18.86615491,4271.0,4270.9,0.001]
[1755803634790,20.96371793,4271.0,4270.9,0.001]
[1755803635793,21.59530164,4271.0,4270.9,0.001]
[1755803636095,17.63030164,4271.0,4270.9,0.001]
[1755803636413,20.96371793,4271.0,4270.9,0.001]
[1755803636607,21.59530164,4271.0,4270.9,0.001]
[1755803637134,3.66,4270.9,4268.8,0.02]
[1755803637314,10.84171691,4268.9,4268.8,0.02]
[1755803637496,6.965,4268.9,4268.8,0.7823]
[1755803637815,3.0,4268.9,4268.8,0.7823]
[1755803638035,6.965,4268.9,4268.8,0.7823]
[1755803638211,14.80671691,4268.9,4268.8,0.3107]
[1755803638434,6.965,4268.9,4268.8,0.3107]
[1755803638590,3.0,4268.9,4268.8,0.3107]
[1755803638790,6.965,4268.9,4268.8,0.7823]
[1755803639301,7.2684,4268.9,4268.8,0.02]
[1755803639504,7.2684,4268.9,4268.8,0.3107]
[1755803639505,7.69184,4268.9,4268.8,0.3107]
[1755803639680,6.965,4268.9,4268.8,0.3107]
[1755803640420,6.965,4268.9,4267.8,0.02]
[1755803640421,3.66,4268.8,4267.8,0.02]
[1755803640586,16.98253182,4268.2,4267.8,0.02]
[1755803640913,6.965,4268.1,4267.8,0.02]
[1755803641096,3.0,4268.2,4267.9,0.4716]
[1755803641292,3.0,4268.2,4268.0,0.7623]
[1755803642315,16.98253182,4268.8,4268.1,0.4716]
[1755803642517,1.801,4269.3,4268.1,0.4716]
[1755803642718,3.966,4269.2,4268.7,0.2907]
[1755803643017,3.9841406,4269.2,4268.7,0.2907]
[1755803643200,3.0,4269.1,4268.7,0.2907]
[1755803643401,0.0181406,4269.0,4268.7,0.2907]
[1755803643618,0.0181406,4269.0,4267.9,0.02343072]
[1755803643619,3.3034,4268.8,4267.9,0.4716]
[1755803643783,3.0,4268.6,4267.9,0.4716]
[1755803643987,3.0,4268.6,4267.8,1.822]
[1755803643988,3.0,4268.4,4267.8,1.822]
[1755803644196,0.0181406,4268.3,4267.8,1.822]
[1755803644414,3.0,4268.2,4267.8,0.02]
[1755803644717,0.3034,4267.9,4267.8,0.02]
[1755803644915,0.3215406,4267.9,4267.8,0.02]
[1755803645129,8.06010466,4267.9,4267.8,0.02]
[1755803645288,8.04196406,4267.9,4267.8,0.02]
[1755803646290,25.02449588,4267.9,4267.8,0.02]
[1755803646720,26.12259588,4267.9,4267.8,0.02]
[1755803648088,8.04196406,4267.9,4267.8,0.02]
[1755803648290,7.73856406,4267.9,4267.8,0.3084]
[1755803648792,7.73956406,4267.9,4267.8,0.3084]
[1755803650202,6.967,4267.9,4267.8,0.7468]
[1755803650391,3.0,4267.9,4267.8,0.7468]
[1755803652621,1.802,4268.5,4267.8,0.7468]
[1755803652938,3.0,4268.3,4267.9,0.4384]
[1755803653129,3.967,4268.6,4268.2,0.2884]